[Event "Turkish Cup 2024"]
[Site "Denizli"]
[Date "2024.08.06"]
[Round "11"]
[White "Sevig, Mert Can"]
[Black "Gungor, Cihan Akif"]
[Result "0-1"]
[ECO "C78"]
[WhiteElo "1818"]
[BlackElo "2024"]
[Annotator "NA RC"]
[PlyCount "78"]
[EventDate "2024.08.01"]
[EventType "swiss"]
[EventCountry "TUR"]
[SourceTitle "playchess.com"]
[Source "ChessBase"]
[SourceQuality "1"]
[TimeControl "5400+30"]

1. e4 {[%emt 0:01:00]} e5 {[%emt 0:01:00]} 2. Nf3 {[%emt 0:00:30]} Nc6 {[%emt 0:00:00]} 3. Bb5 {[%emt 0:00:00]} a6 {[%emt 0:00:00]} 4. Ba4 {[%emt 0:00:00]} Nf6 {[%emt 0:00:30]} 5. O-O {[%emt 0:00:30]} b5 {[%emt 0:00:30]} 6. Bb3 {[%emt 0:00:30]} Bc5 {[%emt 0:00:00]} 7. c3 {[%emt 0:00:00]} d6 {[%emt 0:00:00]} 8. Re1 {[%emt 0:00:00]} Bb6 {[%emt 0:00:00]} 9. d3 {[%emt 0:00:00]} O-O {[%emt 0:00:00]} 10. Nbd2 {[%emt 0:00:00]} Ne7 {[%emt 0:00:30]} 11. Nf1 {[%emt 0:00:30]} Ng6 {[%emt 0:00:30]} 12. Ng3 {[%emt 0:02:30]} h6 {[%emt 0:00:30]} 13. h3 {[%emt 0:00:30]} Re8 {[%emt 0:01:30]} 14. Nh2 {[%emt 0:06:30]} c6 {[%emt 0:03:30]} 15. a4 {[%emt 0:05:30]} Rb8 {[%emt 0:01:30]} 16. Be3 {[%emt 0:18:30]} Bxe3 {[%emt 0:13:30]} 17. fxe3 {[%emt 0:01:30]} b4 {[%emt 0:02:30]} 18. a5 {[%emt 0:03:30]} Qc7 {[%emt 0:02:30]} 19. c4 {[%emt 0:06:30]} Nd7 {[%emt 0:07:30]} 20. d4 {[%emt 0:01:30]} exd4 {[%emt 0:01:30]} 21. exd4 {[%emt 0:00:30]} c5 {[%emt 0:00:00]} 22. e5 {[%emt 0:13:30]} cxd4 {[%emt 0:05:00]} 23. exd6 {[%emt 0:00:30]} Rxe1+ {[%emt 0:00:30]} 24. Qxe1 {[%emt 0:00:30]} Qxd6 {[%emt 0:00:00]} 25. c5 {[%emt 0:00:30]} Nxc5 {[%emt 0:08:00]} 26. Ne4 {[%emt 0:10:30]} Nxe4 {[%emt 0:01:30]} 27. Qxe4 {[%emt 0:00:30]} Bxh3 {[%emt 0:10:30]} 28. Rf1 {[%emt 0:04:30]} Be6 {[%emt 0:00:30]} 29. Bxe6 {[%emt 0:00:30]} Qxe6 {[%emt 0:00:30]} 30. Qxd4 {[%emt 0:00:30]} Qe5 {[%emt 0:01:30]} 31. Qc4 {[%emt 0:05:54]} Qe6 {[%emt 0:02:30]} 32. Qc7 {[%emt 0:04:07]} Rc8 {[%emt 0:02:30]} 33. Qb7 {[%emt 0:00:26]} Rc4 {[%emt 0:00:30]} 34. Qa8+ {[%emt 0:07:14]} Kh7 {[%emt 0:01:30]} 35. Qb7 {[%emt 0:00:01]} Nf4 {[%emt 0:00:00]} 36. b3 {[%emt 0:03:42]} Ne2+ {[%emt 0:00:00]} 37. Kf2 {[%emt 0:00:10]} Rc2 {[%emt 0:01:30]} 38. Nf3 {[%emt 0:01:27]} Nf4+ {[%emt 0:00:30]} 39. Kg3 {[%emt 0:00:30]} Rxg2+ {[%emt 0:00:00]} 0-1

[Event "Turkish Cup 2024"]
[Site "Denizli"]
[Date "2024.08.06"]
[Round "11"]
[White "Seker, Cinar"]
[Black "Hatirli, Ugur Can"]
[Result "1-0"]
[ECO "B43"]
[WhiteElo "1815"]
[BlackElo "1948"]
[Annotator "NA RC"]
[PlyCount "75"]
[EventDate "2024.08.01"]
[EventType "swiss"]
[EventCountry "TUR"]
[SourceTitle "playchess.com"]
[Source "ChessBase"]
[SourceQuality "1"]
[TimeControl "5400+30"]

1. e4 {[%emt 0:01:00]} c5 {[%emt 0:01:00]} 2. Nf3 {[%emt 0:00:30]} e6 {[%emt 0:00:30]} 3. d4 {[%emt 0:00:00]} cxd4 {[%emt 0:00:00]} 4. Nxd4 {[%emt 0:00:00]} a6 {[%emt 0:00:00]} 5. Nc3 {[%emt 0:00:30]} b5 {[%emt 0:00:00]} 6. Bd3 {[%emt 0:00:00]} Bb7 {[%emt 0:00:00]} 7. O-O {[%emt 0:00:00]} Qc7 {[%emt 0:00:00]} 8. Re1 {[%emt 0:00:00]} Bc5 {[%emt 0:01:00]} 9. Bf1 {[%emt 0:00:00]} b4 {[%emt 0:09:30]} 10. Na4 {[%emt 0:00:30]} Bd6 {[%emt 0:02:30]} 11. g3 {[%emt 0:02:30]} Nc6 {[%emt 0:04:30]} 12. Bg2 {[%emt 0:01:30]} Rb8 {[%emt 0:22:30]} 13. Be3 {[%emt 0:00:30]} Nge7 {[%emt 0:09:30]} 14. Nb3 {[%emt 0:02:30]} Nc8 {[%emt 0:02:30]} 15. f4 {[%emt 0:02:30]} f6 {[%emt 0:01:30]} 16. Qd2 {[%emt 0:02:30]} Be7 {[%emt 0:03:30]} 17. Rad1 {[%emt 0:04:30]} d6 {[%emt 0:01:30]} 18. Bh3 {[%emt 0:00:30]} Nd8 {[%emt 0:00:00]} 19. Nd4 {[%emt 0:12:30]} Bc6 {[%emt 0:02:00]} 20. b3 {[%emt 0:00:30]} Bd7 {[%emt 0:04:30]} 21. Nb2 {[%emt 0:00:30]} Kf7 {[%emt 0:03:30]} 22. Nc4 {[%emt 0:05:30]} Re8 {[%emt 0:00:30]} 23. c3 {[%emt 0:03:30]} bxc3 {[%emt 0:04:30]} 24. Qxc3 {[%emt 0:00:30]} Kg8 {[%emt 0:00:30]} 25. Qd2 {[%emt 0:00:30]} Kh8 {[%emt 0:02:30]} 26. Rc1 {[%emt 0:00:30]} Qb7 {[%emt 0:01:30]} 27. Bf2 {[%emt 0:00:30]} Bf8 {[%emt 0:01:30]} 28. Na5 {[%emt 0:00:30]} Qa8 {[%emt 0:01:30]} 29. Rc7 {[%emt 0:00:30]} Nb6 {[%emt 0:00:30]} 30. Nc2 {[%emt 0:07:30]} Bc8 {[%emt 0:02:30]} 31. Qc3 {[%emt 0:01:30]} Nd7 {[%emt 0:00:30]} 32. Ra7 {[%emt 0:00:30]} Qxa7 {[%emt 0:02:58]} 33. Bxa7 {[%emt 0:00:30]} Ra8 {[%emt 0:00:30]} 34. Bf2 {[%emt 0:00:00]} Nf7 {[%emt 0:00:20]} 35. Qc6 {[%emt 0:00:00]} Rb8 {[%emt 0:00:30]} 36. Qc7 {[%emt 0:01:30]} d5 {[%emt 0:01:18]} 37. exd5 {[%emt 0:01:30]} Bd6 {[%emt 0:00:03]} 38. Qc6 {[%emt 0:00:30]} 1-0

[Event "Turkish Cup 2024"]
[Site "Denizli"]
[Date "2024.08.06"]
[Round "11"]
[White "Mutlu, Burak Alp"]
[Black "Karaca, Yigit"]
[Result "1/2-1/2"]
[ECO "B22"]
[WhiteElo "1797"]
[BlackElo "1879"]
[Annotator "NA RC"]
[PlyCount "112"]
[EventDate "2024.08.01"]
[EventType "swiss"]
[EventCountry "TUR"]
[SourceTitle "playchess.com"]
[Source "ChessBase"]
[SourceQuality "1"]
[TimeControl "5400+30"]

1. e4 {[%emt 0:02:00]} c5 {[%emt 0:01:00]} 2. Nf3 {[%emt 0:01:30]} e6 {[%emt 0:00:00]} 3. c3 {[%emt 0:00:00]} Nf6 {[%emt 0:00:00]} 4. e5 {[%emt 0:00:00]} Nd5 {[%emt 0:00:30]} 5. Bc4 {[%emt 0:00:00]} d6 {[%emt 0:12:30]} 6. d4 {[%emt 0:01:00]} Nc6 {[%emt 0:03:30]} 7. O-O {[%emt 0:00:30]} Be7 {[%emt 0:01:30]} 8. Qe2 {[%emt 0:02:30]} cxd4 {[%emt 0:02:30]} 9. cxd4 {[%emt 0:00:30]} O-O {[%emt 0:00:30]} 10. Nc3 {[%emt 0:00:00]} dxe5 {[%emt 0:08:30]} 11. dxe5 {[%emt 0:00:00]} a6 {[%emt 0:01:30]} 12. Qe4 {[%emt 0:26:30]} Ncb4 {[%emt 0:07:30]} 13. a3 {[%emt 0:08:30]} Nxc3 {[%emt 0:06:30]} 14. bxc3 {[%emt 0:00:30]} Nd5 {[%emt 0:00:30]} 15. Bd3 {[%emt 0:00:30]} f5 {[%emt 0:00:30]} 16. exf6 {[%emt 0:00:30]} Nxf6 {[%emt 0:00:30]} 17. Qe2 {[%emt 0:00:30]} Qa5 {[%emt 0:13:30]} 18. c4 {[%emt 0:04:30]} Bd6 {[%emt 0:09:30]} 19. Bd2 {[%emt 0:02:30]} Qh5 {[%emt 0:00:30]} 20. Bb4 {[%emt 0:02:30]} Bc5 {[%emt 0:17:41]} 21. Ne5 {[%emt 0:12:30]} Qxe2 {[%emt 0:01:05]} 22. Bxe2 {[%emt 0:00:00]} Bd4 {[%emt 0:01:16]} 23. Nf3 {[%emt 0:03:00]} Bxa1 {[%emt 0:01:34]} 24. Bxf8 {[%emt 0:00:00]} Kxf8 {[%emt 0:00:46]} 25. Rxa1 {[%emt 0:00:00]} Bd7 {[%emt 0:02:37]} 26. Rb1 {[%emt 0:04:30]} Rb8 {[%emt 0:04:15]} 27. Ne5 {[%emt 0:01:30]} Ke7 {[%emt 0:01:38]} 28. c5 {[%emt 0:07:30]} Rc8 {[%emt 0:01:00]} 29. Nxd7 {[%emt 0:01:45]} Nxd7 {[%emt 0:00:08]} 30. Rxb7 {[%emt 0:00:15]} Rxc5 {[%emt 0:01:42]} 31. Bxa6 {[%emt 0:00:30]} Rc1+ {[%emt 0:00:15]} 32. Bf1 {[%emt 0:00:00]} Kd6 {[%emt 0:00:23]} 33. g3 {[%emt 0:01:00]} Ra1 {[%emt 0:00:50]} 34. Ra7 {[%emt 0:00:40]} g5 {[%emt 0:00:25]} 35. Kg2 {[%emt 0:02:52]} h5 {[%emt 0:00:22]} 36. h3 {[%emt 0:02:54]} Ne5 {[%emt 0:00:27]} 37. Be2 {[%emt 0:02:33]} g4 {[%emt 0:00:00]} 38. hxg4 {[%emt 0:00:48]} hxg4 {[%emt 0:00:26]} 39. Ra4 {[%emt 0:00:30]} Ra2 {[%emt 0:00:30]} 40. Bxg4 {[%emt 0:00:30]} Nxg4 {[%emt 0:00:30]} 41. Rxg4 {[%emt 0:00:30]} Rxa3 {[%emt 0:00:30]} 42. f4 {[%emt 0:00:30]} Ke7 {[%emt 0:00:30]} 43. Rg5 {[%emt 0:00:30]} Kf6 {[%emt 0:00:30]} 44. Kh3 {[%emt 0:01:05]} Kf7 {[%emt 0:00:00]} 45. Rb5 {[%emt 0:00:46]} Kf6 {[%emt 0:00:01]} 46. Kh4 {[%emt 0:00:22]} Ra8 {[%emt 0:00:29]} 47. g4 {[%emt 0:01:57]} Ra1 {[%emt 0:00:32]} 48. g5+ {[%emt 0:02:44]} Kg6 {[%emt 0:00:47]} 49. Re5 {[%emt 0:00:13]} Ra6 {[%emt 0:00:00]} 50. Kg4 {[%emt 0:00:39]} Kf7 {[%emt 0:00:08]} 51. f5 {[%emt 0:03:25]} exf5+ {[%emt 0:00:33]} 52. Rxf5+ {[%emt 0:00:30]} Kg7 {[%emt 0:00:00]} 53. Kh5 {[%emt 0:02:14]} Ra7 {[%emt 0:00:00]} 54. Rb5 {[%emt 0:00:16]} Rc7 {[%emt 0:00:00]} 55. Rb6 {[%emt 0:00:21]} Ra7 {[%emt 0:00:05]} 56. Rg6+ {[%emt 0:00:15]} Kh7 {[%emt 0:00:00]} 1/2-1/2

[Event "Turkish Cup 2024"]
[Site "Denizli"]
[Date "2024.08.06"]
[Round "11"]
[White "Kiraz, Yigit"]
[Black "Tahaoglu, Erkin"]
[Result "1/2-1/2"]
[ECO "E11"]
[WhiteElo "1786"]
[BlackElo "1916"]
[Annotator "NA RC"]
[PlyCount "131"]
[EventDate "2024.08.01"]
[EventType "swiss"]
[EventCountry "TUR"]
[SourceTitle "playchess.com"]
[Source "ChessBase"]
[SourceQuality "1"]
[TimeControl "5400+30"]

1. d4 {[%emt 0:08:00]} Nf6 {[%emt 0:01:00]} 2. Nf3 {[%emt 0:01:30]} e6 {[%emt 0:00:30]} 3. c4 {[%emt 0:00:30]} Bb4+ {[%emt 0:00:00]} 4. Bd2 {[%emt 0:00:30]} Qe7 {[%emt 0:00:00]} 5. e3 {[%emt 0:00:00]} O-O {[%emt 0:01:30]} 6. Bd3 {[%emt 0:00:00]} Bxd2+ {[%emt 0:00:30]} 7. Qxd2 {[%emt 0:02:30]} d6 {[%emt 0:00:30]} 8. O-O {[%emt 0:03:30]} e5 {[%emt 0:00:30]} 9. Bc2 {[%emt 0:00:30]} e4 {[%emt 0:01:30]} 10. Ne1 {[%emt 0:00:30]} c6 {[%emt 0:03:30]} 11. f3 {[%emt 0:02:30]} Re8 {[%emt 0:09:30]} 12. fxe4 {[%emt 0:03:30]} Nxe4 {[%emt 0:00:30]} 13. Bxe4 {[%emt 0:01:30]} Qxe4 {[%emt 0:00:30]} 14. Rf3 {[%emt 0:01:30]} Nd7 {[%emt 0:10:30]} 15. Nc3 {[%emt 0:01:30]} Qe7 {[%emt 0:02:30]} 16. Nd3 {[%emt 0:00:30]} Nf6 {[%emt 0:01:30]} 17. Raf1 {[%emt 0:01:30]} Bg4 {[%emt 0:00:30]} 18. Rg3 {[%emt 0:01:30]} Bh5 {[%emt 0:01:30]} 19. Nf4 {[%emt 0:06:30]} Bg6 {[%emt 0:01:30]} 20. Qf2 {[%emt 0:06:30]} Nh5 {[%emt 0:04:30]} 21. Nxg6 {[%emt 0:01:30]} hxg6 {[%emt 0:00:30]} 22. Rh3 {[%emt 0:00:30]} f5 {[%emt 0:01:30]} 23. Re1 {[%emt 0:10:30]} Qf7 {[%emt 0:06:30]} 24. d5 {[%emt 0:03:30]} Re5 {[%emt 0:01:30]} 25. Rd1 {[%emt 0:05:30]} c5 {[%emt 0:01:30]} 26. Rf1 {[%emt 0:00:30]} Qe7 {[%emt 0:00:30]} 27. Kh1 {[%emt 0:06:30]} Re8 {[%emt 0:01:30]} 28. e4 {[%emt 0:02:30]} fxe4 {[%emt 0:03:30]} 29. Re3 {[%emt 0:10:10]} Rf5 {[%emt 0:01:30]} 30. Qe1 {[%emt 0:01:09]} Nf6 {[%emt 0:01:30]} 31. h3 {[%emt 0:01:49]} Qe5 {[%emt 0:02:30]} 32. g4 {[%emt 0:01:11]} Rf4 {[%emt 0:01:30]} 33. Rxf4 {[%emt 0:01:47]} Qxf4 {[%emt 0:00:30]} 34. Kg2 {[%emt 0:00:09]} a6 {[%emt 0:04:30]} 35. Qg3 {[%emt 0:02:19]} g5 {[%emt 0:01:30]} 36. Ne2 {[%emt 0:05:47]} Qxg3+ {[%emt 0:01:30]} 37. Kxg3 {[%emt 0:00:12]} b5 {[%emt 0:00:30]} 38. Ra3 {[%emt 0:01:12]} Rb8 {[%emt 0:01:30]} 39. b3 {[%emt 0:03:53]} Rb6 {[%emt 0:02:30]} 40. Kf2 {[%emt 0:00:33]} Nd7 {[%emt 0:02:30]} 41. Ke3 {[%emt 0:02:23]} bxc4 {[%emt 0:00:30]} 42. bxc4 {[%emt 0:00:31]} Ne5 {[%emt 0:00:30]} 43. Kxe4 {[%emt 0:00:35]} Nxc4 {[%emt 0:00:00]} 44. Ra4 {[%emt 0:01:09]} Nb2 {[%emt 0:01:00]} 45. Ra3 {[%emt 0:00:01]} g6 {[%emt 0:00:00]} 46. Nc3 {[%emt 0:01:09]} Kg7 {[%emt 0:04:00]} 47. Kf3 {[%emt 0:00:06]} Nc4 {[%emt 0:01:30]} 48. Ra4 {[%emt 0:00:13]} Ne5+ {[%emt 0:00:00]} 49. Ke3 {[%emt 0:00:21]} Nd7 {[%emt 0:02:00]} 50. Re4 {[%emt 0:00:43]} Ne5 {[%emt 0:02:30]} 51. Ra4 {[%emt 0:00:01]} Kf8 {[%emt 0:01:30]} 52. Ne4 {[%emt 0:00:27]} Nf7 {[%emt 0:01:44]} 53. Nf6 {[%emt 0:01:33]} Ke7 {[%emt 0:00:45]} 54. Nh7 {[%emt 0:00:21]} Ne5 {[%emt 0:01:39]} 55. Nxg5 {[%emt 0:00:36]} a5 {[%emt 0:00:06]} 56. Ne4 {[%emt 0:01:27]} Rb1 {[%emt 0:00:36]} 57. Nd2 {[%emt 0:00:36]} Rh1 {[%emt 0:01:27]} 58. Rxa5 {[%emt 0:00:17]} Rxh3+ {[%emt 0:00:00]} 59. Kf4 {[%emt 0:00:14]} c4 {[%emt 0:00:43]} 60. Ra7+ {[%emt 0:00:04]} Kd8 {[%emt 0:00:00]} 61. Ne4 {[%emt 0:01:49]} c3 {[%emt 0:01:27]} 62. Ng5 {[%emt 0:00:18]} c2 {[%emt 0:01:20]} 63. Ne6+ {[%emt 0:00:08]} Ke8 {[%emt 0:00:00]} 64. Ng7+ {[%emt 0:01:14]} Kf8 {[%emt 0:00:11]} 65. Ne6+ {[%emt 0:00:00]} Kg8 {[%emt 0:01:56]} 66. Ra8+ {[%emt 0:00:00]} 1/2-1/2

[Event "Turkish Cup 2024"]
[Site "Denizli"]
[Date "2024.08.06"]
[Round "11"]
[White "Gunal, Yusuf Kursat"]
[Black "Cetindag, Alper"]
[Result "1-0"]
[ECO "D33"]
[WhiteElo "1773"]
[BlackElo "1923"]
[Annotator "NA RC"]
[PlyCount "117"]
[EventDate "2024.08.01"]
[EventType "swiss"]
[EventCountry "TUR"]
[SourceTitle "playchess.com"]
[Source "ChessBase"]
[SourceQuality "1"]
[TimeControl "5400+30"]

1. Nf3 {[%emt 0:01:00]} Nf6 {[%emt 0:01:00]} 2. g3 {[%emt 0:00:00]} e6 {[%emt 0:00:00]} 3. Bg2 {[%emt 0:00:00]} c5 {[%emt 0:01:00]} 4. c4 {[%emt 0:00:30]} Nc6 {[%emt 0:03:30]} 5. Nc3 {[%emt 0:00:00]} d5 {[%emt 0:03:30]} 6. cxd5 {[%emt 0:03:00]} exd5 {[%emt 0:00:30]} 7. d4 {[%emt 0:00:30]} cxd4 {[%emt 0:00:30]} 8. Nxd4 {[%emt 0:00:00]} Bc5 {[%emt 0:00:00]} 9. Nxc6 {[%emt 0:01:00]} bxc6 {[%emt 0:00:00]} 10. O-O {[%emt 0:00:00]} O-O {[%emt 0:00:30]} 11. Qc2 {[%emt 0:08:00]} Bb6 {[%emt 0:12:30]} 12. Na4 {[%emt 0:05:30]} Ba6 {[%emt 0:04:30]} 13. Rd1 {[%emt 0:02:30]} Re8 {[%emt 0:04:30]} 14. Bf3 {[%emt 0:03:30]} h6 {[%emt 0:27:30]} 15. b3 {[%emt 0:09:30]} Qc8 {[%emt 0:15:30]} 16. Nxb6 {[%emt 0:10:30]} axb6 {[%emt 0:00:30]} 17. a4 {[%emt 0:02:30]} Qe6 {[%emt 0:01:30]} 18. e3 {[%emt 0:00:30]} Ne4 {[%emt 0:00:30]} 19. Bb2 {[%emt 0:00:30]} Rad8 {[%emt 0:02:51]} 20. b4 {[%emt 0:02:30]} Qf5 {[%emt 0:01:53]} 21. Bg2 {[%emt 0:09:30]} Nxg3 {[%emt 0:00:48]} 22. Qxf5 {[%emt 0:00:30]} Nxf5 {[%emt 0:00:00]} 23. Bh3 {[%emt 0:03:30]} Nd6 {[%emt 0:00:38]} 24. Bd4 {[%emt 0:01:30]} Nc4 {[%emt 0:00:45]} 25. Kh1 {[%emt 0:01:30]} Bc8 {[%emt 0:01:08]} 26. Bf1 {[%emt 0:00:30]} Bg4 {[%emt 0:00:33]} 27. Rdc1 {[%emt 0:01:30]} Rd6 {[%emt 0:03:01]} 28. Kg2 {[%emt 0:03:30]} Nd2 {[%emt 0:02:19]} 29. f3 {[%emt 0:07:30]} Bxf3+ {[%emt 0:03:09]} 30. Kf2 {[%emt 0:00:30]} Bh5 {[%emt 0:01:25]} 31. Bd3 {[%emt 0:01:30]} Nb3 {[%emt 0:01:09]} 32. Bxb6 {[%emt 0:00:30]} Rf6+ {[%emt 0:00:14]} 33. Kg1 {[%emt 0:03:30]} Re5 {[%emt 0:02:13]} 34. h4 {[%emt 0:00:47]} Bg6 {[%emt 0:01:59]} 35. Bxg6 {[%emt 0:05:25]} Rxg6+ {[%emt 0:00:06]} 36. Kf2 {[%emt 0:01:07]} Rf5+ {[%emt 0:01:01]} 37. Ke2 {[%emt 0:00:08]} Rg4 {[%emt 0:02:17]} 38. Rcb1 {[%emt 0:04:35]} Rg2+ {[%emt 0:01:59]} 39. Kd3 {[%emt 0:00:11]} Nxa1 {[%emt 0:00:55]} 40. Rxa1 {[%emt 0:00:01]} Rff2 {[%emt 0:00:12]} 41. Kd4 {[%emt 0:00:33]} Rg4+ {[%emt 0:01:26]} 42. Kc5 {[%emt 0:00:01]} Rc2+ {[%emt 0:01:00]} 43. Kd6 {[%emt 0:00:02]} Rxb4 {[%emt 0:00:57]} 44. a5 {[%emt 0:00:08]} Rbb2 {[%emt 0:00:08]} 45. a6 {[%emt 0:02:39]} Ra2 {[%emt 0:00:30]} 46. Rxa2 {[%emt 0:00:30]} Rxa2 {[%emt 0:00:30]} 47. a7 {[%emt 0:00:00]} g5 {[%emt 0:00:00]} 48. Kxc6 {[%emt 0:00:00]} f5 {[%emt 0:01:16]} 49. Kb5 {[%emt 0:00:00]} Rxa7 {[%emt 0:00:34]} 50. Bxa7 {[%emt 0:00:00]} f4 {[%emt 0:00:57]} 51. exf4 {[%emt 0:00:10]} gxh4 {[%emt 0:00:33]} 52. Bf2 {[%emt 0:00:19]} h3 {[%emt 0:00:07]} 53. Bg3 {[%emt 0:00:01]} Kf7 {[%emt 0:00:06]} 54. Kc5 {[%emt 0:00:41]} Ke6 {[%emt 0:00:30]} 55. Kd4 {[%emt 0:00:00]} h5 {[%emt 0:00:00]} 56. Bh2 {[%emt 0:00:26]} h4 {[%emt 0:00:04]} 57. Kc5 {[%emt 0:00:10]} Kf5 {[%emt 0:00:30]} 58. Kxd5 {[%emt 0:00:30]} Kg4 {[%emt 0:00:30]} 59. Ke4 {[%emt 0:00:00]} 1-0

[Event "Turkish Cup 2024"]
[Site "Denizli"]
[Date "2024.08.06"]
[Round "11"]
[White "Aytekin, Mustafa Tugrul"]
[Black "Atik, Muhammed Ihsan"]
[Result "1/2-1/2"]
[ECO "B25"]
[WhiteElo "1772"]
[BlackElo "1788"]
[Annotator "NA RC"]
[PlyCount "53"]
[EventDate "2024.08.01"]
[EventType "swiss"]
[EventCountry "TUR"]
[SourceTitle "playchess.com"]
[Source "ChessBase"]
[SourceQuality "1"]
[TimeControl "5400+30"]

1. e4 {[%emt 0:01:00]} c5 {[%emt 0:01:00]} 2. Nc3 {[%emt 0:00:30]} Nc6 {[%emt 0:00:30]} 3. g3 {[%emt 0:00:00]} g6 {[%emt 0:00:00]} 4. Bg2 {[%emt 0:00:00]} Bg7 {[%emt 0:00:00]} 5. d3 {[%emt 0:00:00]} d6 {[%emt 0:00:30]} 6. f4 {[%emt 0:00:00]} e6 {[%emt 0:02:30]} 7. Nf3 {[%emt 0:00:00]} Nge7 {[%emt 0:02:30]} 8. O-O {[%emt 0:00:00]} Nd4 {[%emt 0:02:30]} 9. Be3 {[%emt 0:01:30]} Nec6 {[%emt 0:05:30]} 10. h3 {[%emt 0:08:30]} Bd7 {[%emt 0:05:30]} 11. Rb1 {[%emt 0:02:30]} Nxf3+ {[%emt 0:00:30]} 12. Qxf3 {[%emt 0:02:30]} Nd4 {[%emt 0:03:30]} 13. Qd1 {[%emt 0:02:30]} Bc6 {[%emt 0:01:30]} 14. Ne2 {[%emt 0:00:30]} Nxe2+ {[%emt 0:04:30]} 15. Qxe2 {[%emt 0:00:30]} Qa5 {[%emt 0:00:30]} 16. a3 {[%emt 0:00:30]} O-O-O {[%emt 0:01:30]} 17. Qf2 {[%emt 0:02:30]} b6 {[%emt 0:09:30]} 18. e5 {[%emt 0:10:30]} Bxg2 {[%emt 0:03:30]} 19. Qxg2 {[%emt 0:00:30]} Kc7 {[%emt 0:02:30]} 20. b4 {[%emt 0:03:30]} cxb4 {[%emt 0:01:30]} 21. axb4 {[%emt 0:01:30]} Qd5 {[%emt 0:00:30]} 22. Qxd5 {[%emt 0:00:30]} exd5 {[%emt 0:00:30]} 23. Bd4 {[%emt 0:01:30]} Kb7 {[%emt 0:02:30]} 24. b5 {[%emt 0:01:30]} Rhe8 {[%emt 0:04:30]} 25. Rbe1 {[%emt 0:02:30]} Rd7 {[%emt 0:01:30]} 26. Kg2 {[%emt 0:06:30]} Rde7 {[%emt 0:01:30]} 27. Ra1 {[%emt 0:06:30]} 1/2-1/2

[Event "Turkish Cup 2024"]
[Site "Denizli"]
[Date "2024.08.06"]
[Round "11"]
[White "Tutmaz, Bugra Hamza"]
[Black "Konusoglu, Kemal Safa"]
[Result "0-1"]
[ECO "D02"]
[WhiteElo "1761"]
[BlackElo "1904"]
[Annotator "NA RC"]
[PlyCount "146"]
[EventDate "2024.08.01"]
[EventType "swiss"]
[EventCountry "TUR"]
[SourceTitle "playchess.com"]
[Source "ChessBase"]
[SourceQuality "1"]
[TimeControl "5400+30"]

1. d4 {[%emt 0:01:00]} Nf6 {[%emt 0:01:00]} 2. Bf4 {[%emt 0:00:30]} d5 {[%emt 0:00:00]} 3. e3 {[%emt 0:00:00]} c5 {[%emt 0:00:00]} 4. c3 {[%emt 0:00:00]} Nc6 {[%emt 0:00:30]} 5. Bd3 {[%emt 0:01:30]} e6 {[%emt 0:00:30]} 6. Nf3 {[%emt 0:00:00]} Qb6 {[%emt 0:00:30]} 7. Qc1 {[%emt 0:01:00]} Be7 {[%emt 0:00:30]} 8. Nbd2 {[%emt 0:00:30]} O-O {[%emt 0:00:30]} 9. h3 {[%emt 0:00:30]} Bd7 {[%emt 0:00:30]} 10. O-O {[%emt 0:00:30]} Rac8 {[%emt 0:01:30]} 11. a3 {[%emt 0:02:30]} Qd8 {[%emt 0:00:30]} 12. Qd1 {[%emt 0:01:30]} a5 {[%emt 0:00:30]} 13. Ne5 {[%emt 0:01:30]} Be8 {[%emt 0:01:30]} 14. Bh2 {[%emt 0:03:30]} Nxe5 {[%emt 0:01:30]} 15. dxe5 {[%emt 0:00:30]} Nd7 {[%emt 0:00:00]} 16. Qc2 {[%emt 0:08:30]} g6 {[%emt 0:00:00]} 17. Nf3 {[%emt 0:01:30]} c4 {[%emt 0:00:30]} 18. Be2 {[%emt 0:00:30]} Nc5 {[%emt 0:00:30]} 19. Nd4 {[%emt 0:00:30]} Ba4 {[%emt 0:01:30]} 20. Qd2 {[%emt 0:01:30]} Bg5 {[%emt 0:02:30]} 21. Bd1 {[%emt 0:05:30]} Bxd1 {[%emt 0:01:30]} 22. Rfxd1 {[%emt 0:00:00]} b5 {[%emt 0:00:30]} 23. Rab1 {[%emt 0:05:00]} Qb6 {[%emt 0:00:30]} 24. Nc2 {[%emt 0:02:30]} Be7 {[%emt 0:01:30]} 25. Bf4 {[%emt 0:02:30]} Rb8 {[%emt 0:00:30]} 26. Qe2 {[%emt 0:06:30]} Rfc8 {[%emt 0:01:30]} 27. Bg3 {[%emt 0:00:30]} Qb7 {[%emt 0:02:30]} 28. f3 {[%emt 0:01:30]} Nd3 {[%emt 0:02:30]} 29. Ne1 {[%emt 0:01:30]} Nc5 {[%emt 0:00:30]} 30. Nc2 {[%emt 0:00:30]} Na4 {[%emt 0:00:30]} 31. Be1 {[%emt 0:06:30]} Qa8 {[%emt 0:00:30]} 32. Kh1 {[%emt 0:03:30]} Nc5 {[%emt 0:00:00]} 33. Bg3 {[%emt 0:01:30]} Rd8 {[%emt 0:01:00]} 34. Kh2 {[%emt 0:03:30]} Rb6 {[%emt 0:00:00]} 35. Kh1 {[%emt 0:08:30]} Qb7 {[%emt 0:00:00]} 36. f4 {[%emt 0:01:30]} Rb8 {[%emt 0:00:30]} 37. Kh2 {[%emt 0:01:30]} Nd3 {[%emt 0:00:30]} 38. Ne1 {[%emt 0:01:30]} Nxe1 {[%emt 0:00:30]} 39. Bxe1 {[%emt 0:00:30]} b4 {[%emt 0:00:30]} 40. axb4 {[%emt 0:00:30]} axb4 {[%emt 0:00:00]} 41. e4 {[%emt 0:00:30]} dxe4 {[%emt 0:01:00]} 42. Rd4 {[%emt 0:07:30]} e3 {[%emt 0:22:30]} 43. Rxc4 {[%emt 0:01:42]} bxc3 {[%emt 0:11:30]} 44. Bxc3 {[%emt 0:01:32]} Qa6 {[%emt 0:00:00]} 45. Qf1 {[%emt 0:07:32]} e2 {[%emt 0:01:00]} 46. Qxe2 {[%emt 0:00:30]} Rc6 {[%emt 0:00:30]} 47. b3 {[%emt 0:00:40]} Rxc4 {[%emt 0:06:30]} 48. Ra1 {[%emt 0:00:01]} Qxa1 {[%emt 0:00:30]} 49. Bxa1 {[%emt 0:00:01]} Rxf4 {[%emt 0:08:30]} 50. Bc3 {[%emt 0:02:01]} Rxb3 {[%emt 0:02:30]} 51. Qc2 {[%emt 0:00:45]} Rb8 {[%emt 0:05:30]} 52. Bd2 {[%emt 0:03:46]} Rd4 {[%emt 0:06:30]} 53. Qc7 {[%emt 0:00:53]} Rbd8 {[%emt 0:00:30]} 54. Be3 {[%emt 0:00:13]} R4d7 {[%emt 0:00:30]} 55. Qc6 {[%emt 0:00:09]} Rd5 {[%emt 0:00:00]} 56. Qc7 {[%emt 0:01:02]} R5d7 {[%emt 0:02:06]} 57. Qc6 {[%emt 0:00:06]} Kg7 {[%emt 0:00:19]} 58. Bb6 {[%emt 0:00:07]} Rd5 {[%emt 0:00:00]} 59. Bxd8 {[%emt 0:01:51]} Bxd8 {[%emt 0:00:26]} 60. Qc3 {[%emt 0:00:30]} Ba5 {[%emt 0:00:30]} 61. Qc4 {[%emt 0:02:06]} Bb6 {[%emt 0:00:32]} 62. Qf4 {[%emt 0:03:19]} Bd4 {[%emt 0:03:19]} 63. Qf6+ {[%emt 0:01:27]} Kg8 {[%emt 0:00:02]} 64. Qe7 {[%emt 0:00:07]} Bxe5+ {[%emt 0:00:39]} 65. Kg1 {[%emt 0:00:00]} Bd4+ {[%emt 0:00:00]} 66. Kf1 {[%emt 0:00:08]} Kg7 {[%emt 0:00:18]} 67. Qb7 {[%emt 0:00:07]} Rf5+ {[%emt 0:00:19]} 68. Ke2 {[%emt 0:00:23]} h5 {[%emt 0:00:40]} 69. g4 {[%emt 0:00:29]} hxg4 {[%emt 0:00:46]} 70. hxg4 {[%emt 0:00:02]} Rf4 {[%emt 0:00:31]} 71. g5 {[%emt 0:00:36]} Rf5 {[%emt 0:01:02]} 72. Kd3 {[%emt 0:00:48]} Be5 {[%emt 0:01:09]} 73. Qg2 {[%emt 0:00:30]} Bf4 {[%emt 0:00:00]} 0-1